fUSD/lending_fUSD_20251223
["ID","MTS","AMOUNT","RATE_DAILY","PERIOD"]
[399559042,1766487387236,-619.91,0.00044657,120]
[399559043,1766487387279,-500.0,0.00044657,120]
[399559044,1766487387320,-500.0,0.00044657,120]
[399559045,1766487387362,-580.69,0.00044657,120]
[399559046,1766487387403,-865.33,0.00044657,120]
[399559047,1766487387444,-500.0,0.00044657,60]
[399559048,1766487387485,-500.0,0.00044657,120]
[399559049,1766487387526,-500.0,0.00044657,120]
[399559050,1766487387565,-500.0,0.00044657,120]
[399559051,1766487387602,-571.4413242,0.00044657,120]
[399559052,1766487387641,-500.0,0.00044657,120]
[399559053,1766487387678,-500.0,0.00044657,120]
[399559054,1766487387715,-500.0,0.00044657,120]
[399559055,1766487387753,-500.0,0.00044657,120]
[399559056,1766487387790,-865.61,0.00044657,120]
[399559057,1766487387826,-500.0,0.00044657,120]
[399559058,1766487387863,-500.0,0.00044657,120]
[399559059,1766487387901,-1432.6,0.00044657,120]
[399559060,1766487387938,-500.0,0.00044657,120]
[399559061,1766487387974,-512.11746015,0.00044657,120]
[399559062,1766487388011,-500.0,0.00044657,120]
[399559063,1766487388049,-500.0,0.00044657,120]
[399559064,1766487388090,-893.55,0.00044657,120]
[399559065,1766487388129,-500.0,0.00044657,120]
[399559066,1766487388172,-500.0,0.00044657,120]
[399559067,1766487388214,-1688.71,0.00044657,120]
[399559068,1766487388254,-500.0,0.00044657,120]
[399559069,1766487388295,-905.29,0.00044657,120]
[399559070,1766487388335,-500.0,0.00044657,120]
[399559071,1766487388374,-632.22,0.00044657,120]
[399559072,1766487388415,-327.75645815,0.00044657,120]
[399559073,1766487388455,-500.0,0.00044657,120]
[399559074,1766487388495,-500.0,0.00044657,120]
[399559075,1766487388532,-592.93,0.00044657,120]
[399559076,1766487388569,-519.34,0.00044657,120]
[399559077,1766487388608,-697.2,0.00044657,120]
[399559078,1766487388648,-1835.93,0.00044657,120]
[399559079,1766487388686,-878.66,0.00044657,120]
[399559080,1766487388723,-409.38451327,0.00044657,120]
[399559081,1766487388759,-500.0,0.00044657,120]
[399559082,1766487388797,-913.04,0.00044657,120]
[399559083,1766487388835,-500.0,0.00044657,120]
[399559084,1766487388871,-500.0,0.00044657,120]
[399559085,1766487388907,-500.0,0.00044657,120]
[399559086,1766487388942,-500.0,0.00044657,120]
[399559087,1766487388980,-751.1,0.00044657,120]
[399559088,1766487389020,-500.0,0.00044657,120]
[399559089,1766487389060,-500.0,0.00044657,120]
[399559090,1766487389100,-500.0,0.00044657,120]
[399559091,1766487389140,-1075.62,0.00044657,60]
[399559092,1766487389180,-500.0,0.00044657,120]
[399559093,1766487389220,-500.0,0.00044657,120]
[399559094,1766487389261,-1328.41,0.00044657,120]
[399559095,1766487389301,-500.0,0.00044657,120]
[399559096,1766487389339,-207.00580561,0.00044657,120]
[399559097,1766487389376,-500.0,0.00044657,120]
[399559098,1766487389414,-500.0,0.00044657,120]
[399559099,1766487389452,-500.0,0.00044657,120]
[399559100,1766487389489,-599.0,0.00044657,120]
[399559101,1766487389527,-886.86,0.00044657,120]
[399559102,1766487389564,-500.0,0.00044657,120]
[399559103,1766487389602,-500.0,0.00044657,120]
[399559104,1766487389638,-500.0,0.00044657,120]
[399559105,1766487389676,-500.0,0.00044657,120]
[399559106,1766487389714,-560.74,0.00044657,120]
[399559107,1766487389751,-500.0,0.00044657,120]
[399559108,1766487389787,-500.0,0.00044657,120]
[399559109,1766487389825,-1433.05,0.00044657,120]
[399559110,1766487389862,-500.0,0.00044657,120]
[399559111,1766487389900,-500.0,0.00044657,120]
[399559112,1766487389939,-500.0,0.00044657,120]
[399559113,1766487389979,-500.0,0.00044657,120]
[399559114,1766487390016,-500.0,0.00044657,120]
[399559115,1766487390052,-2265.89,0.00044657,120]
[399559116,1766487390092,-2082.47,0.00044657,120]
[399559117,1766487390132,-500.0,0.00044657,120]
[399559118,1766487390170,-1141.51,0.00044657,120]
[399559119,1766487390214,-1850.23,0.00044657,120]
[399559120,1766487390257,-500.0,0.00044657,120]
[399559121,1766487390299,-1211.32,0.00044657,120]
[399559122,1766487390338,-1291.8,0.00044657,120]
[399559123,1766487390374,-283.56831461,0.00044657,120]
[399559124,1766487390410,-819.42,0.00044657,120]
[399559125,1766487390447,-2579.35,0.00044657,120]
[399559126,1766487390484,-500.0,0.00044657,120]
[399559127,1766487390518,-500.0,0.00044657,120]
[399559128,1766487390553,-500.0,0.00044657,120]
[399559129,1766487390589,-500.0,0.00044657,120]
[399559130,1766487390624,-1083.91,0.00044657,120]
[399559131,1766487390660,-500.0,0.00044657,120]
[399559132,1766487390696,-2453.97,0.00044657,120]
[399559133,1766487390732,-1697.27,0.00044657,120]
[399559134,1766487390767,-1279.54,0.00044657,120]
[399559135,1766487391023,-500.0,0.00044657,120]
[399559136,1766487391066,-500.0,0.00044657,120]
[399559137,1766487391107,-730.24,0.00044657,120]
[399559138,1766487391145,-500.0,0.00044657,120]
[399559139,1766487391185,-500.0,0.00044657,120]
[399559140,1766487391225,-500.0,0.00044657,120]
[399559141,1766487391265,-500.0,0.00044657,120]
[399559142,1766487391303,-500.0,0.00044657,120]
[399559143,1766487391340,-532.08442221,0.00044657,120]
[399559144,1766487391378,-500.0,0.00044657,120]
[399559145,1766487391415,-337.42263383,0.00044657,120]
[399559146,1766487391453,-500.0,0.00044657,120]
[399559147,1766487391489,-444.08780588,0.00044657,120]
[399559148,1766487391526,-500.0,0.00044657,120]
[399559149,1766487391564,-751.57,0.00044657,120]
[399559150,1766487391601,-462.68449964,0.00044657,120]
[399559151,1766487391641,-1053.31,0.00044657,120]
[399559152,1766487391678,-516.65,0.00044657,120]
[399559153,1766487391714,-500.0,0.00044657,120]
[399559154,1766487391750,-500.0,0.00044657,120]
[399559155,1766487391789,-473.61945498,0.00044657,120]
[399559156,1766487391830,-500.0,0.00044657,120]
[399559157,1766487391870,-528.31415341,0.00044657,120]
[399559158,1766487391908,-509.89555925,0.00044657,120]
[399559159,1766487391950,-633.24819859,0.00044657,120]
[399559160,1766487391988,-500.0,0.00044657,120]
[399559161,1766487392029,-500.0,0.00044657,120]
[399559162,1766487392068,-847.16,0.00044657,120]
[399559163,1766487392108,-1188.06,0.00044657,120]
[399559164,1766487392148,-500.0,0.00044657,120]
[399559165,1766487392190,-626.28,0.00044657,120]
[399559166,1766487392236,-500.0,0.00044657,120]
[399559167,1766487392280,-267.4784398,0.00044657,120]
[399559168,1766487392323,-500.0,0.00044657,120]
[399559169,1766487392367,-500.0,0.00044657,120]
[399559170,1766487392408,-500.0,0.00044657,120]
[399559171,1766487392449,-500.0,0.00044657,120]
[399559172,1766487392487,-1482.2,0.00044657,120]
[399559173,1766487392527,-500.0,0.00044657,120]
[399559174,1766487392565,-570.04,0.00044657,120]
[399559175,1766487392603,-612.78,0.00044657,120]
[399559176,1766487392642,-579.86061909,0.00044657,120]
[399559177,1766487392682,-500.0,0.00044657,120]
[399559178,1766487392723,-500.0,0.00044657,120]
[399559179,1766487392764,-500.0,0.00044657,120]
[399559180,1766487392801,-500.0,0.00044657,120]
[399559181,1766487392838,-1255.16,0.00044657,120]
[399559182,1766487392875,-1932.35,0.00044657,120]
[399559183,1766487392911,-500.0,0.00044657,120]
[399559184,1766487392951,-1678.76,0.00044657,120]
[399559185,1766487392988,-500.0,0.00044657,120]
[399559186,1766487393024,-500.0,0.00044657,120]
[399559187,1766487393065,-587.64750651,0.00044657,120]
[399559188,1766487393109,-1569.44,0.00044657,120]
[399559189,1766487393153,-500.0,0.00044657,120]
[399559190,1766487393204,-1870.13,0.00044657,120]
[399559191,1766487393253,-500.0,0.00044657,120]
[399559192,1766487393292,-500.0,0.00044657,120]
[399559193,1766487393331,-180.42838645,0.00044657,120]
[399559194,1766487393371,-500.0,0.00044657,120]
[399559195,1766487393411,-500.0,0.00044657,120]
[399559196,1766487393450,-581.18505716,0.00044657,120]
[399559197,1766487393489,-500.0,0.00044657,120]
[399559198,1766487393527,-500.0,0.00044657,120]
[399559199,1766487393566,-500.0,0.00044657,120]
[399559200,1766487393605,-416.50709074,0.00044657,120]
[399559201,1766487393643,-500.0,0.00044657,120]
[399559202,1766487393683,-500.0,0.00044657,120]
[399559203,1766487393722,-500.0,0.00044657,120]
[399559204,1766487393762,-500.0,0.00044657,120]
[399559205,1766487393802,-2182.76,0.00044657,120]
[399559206,1766487393840,-500.0,0.00044657,120]
[399559207,1766487393879,-500.0,0.00044657,120]
[399559208,1766487393919,-1062.94,0.00044657,120]
[399559209,1766487393960,-500.0,0.00044657,120]
[399559210,1766487394000,-500.0,0.00044657,120]
[399559211,1766487394043,-500.0,0.00044657,120]
[399559212,1766487394087,-500.0,0.00044657,60]
[399559213,1766487394128,-500.0,0.00044657,120]
[399559214,1766487394174,-500.0,0.00044657,120]
[399559215,1766487394218,-500.0,0.00044657,120]
[399559216,1766487394263,-500.0,0.00044657,120]
[399559217,1766487394307,-500.0,0.00044657,120]
[399559218,1766487394351,-484.01330424,0.00044657,120]
[399559219,1766487394393,-500.0,0.00044657,120]
[399559220,1766487394435,-588.9009637,0.00044657,120]
[399559221,1766487394476,-503.44,0.00044657,120]
[399559222,1766487394518,-500.0,0.00044657,120]
[399559223,1766487394559,-595.91,0.00044657,120]
[399559224,1766487394600,-500.0,0.00044657,120]
[399559225,1766487394643,-811.74,0.00044657,120]
[399559226,1766487394686,-500.0,0.00044657,120]
[399559227,1766487394726,-500.0,0.00044657,120]
[399559228,1766487394766,-357.82542422,0.00044657,120]
[399559229,1766487394805,-650.99,0.00044657,120]
[399559230,1766487395037,-500.0,0.00044657,120]
[399559231,1766487395081,-500.0,0.00044657,120]
[399559232,1766487395124,-428.34550497,0.00044657,120]
[399559233,1766487395166,-500.0,0.00044657,120]
[399559234,1766487395209,-500.0,0.00044657,120]
[399559235,1766487395251,-1388.3,0.00044657,120]
[399559236,1766487395292,-500.0,0.00044657,120]
[399559237,1766487395334,-500.0,0.00044657,120]
[399559238,1766487395374,-500.0,0.00044657,120]
[399559239,1766487395417,-500.0,0.00044657,120]
[399559240,1766487395459,-689.37,0.00044657,120]
[399559241,1766487395501,-1432.96,0.00044657,120]
[399559242,1766487395542,-1562.05,0.00044657,120]
[399559243,1766487395580,-500.0,0.00044657,120]
[399559244,1766487395618,-379.76181921,0.00044657,120]
[399559245,1766487395658,-1196.29,0.00044657,120]
[399559246,1766487395697,-500.0,0.00044657,120]
[399559247,1766487395735,-1708.74,0.00044657,120]
[399559248,1766487395774,-500.0,0.00044657,120]
[399559249,1766487395813,-500.0,0.00044657,120]
[399559250,1766487395853,-1298.55,0.00044657,120]
[399559251,1766487395891,-500.0,0.00044657,120]
[399559252,1766487395930,-1689.23,0.00044657,120]
[399559253,1766487395969,-500.0,0.00044657,120]
[399559254,1766487396010,-500.0,0.00044657,120]
[399559255,1766487396050,-1005.64,0.00044657,120]
[399559256,1766487396094,-500.0,0.00044657,60]
[399559257,1766487396137,-500.0,0.00044657,90]
[399559258,1766487396177,-10397.11,0.00044657,120]
[399559259,1766487396219,-765.9,0.00044657,120]
[399559260,1766487396262,-500.0,0.00044657,120]
[399559261,1766487396303,-500.0,0.00044657,120]
[399559262,1766487396345,-500.0,0.00044657,120]
[399559263,1766487396386,-164.14683,0.00044657,120]
[399559264,1766487396427,-1437.927834,0.00044657,120]
[399559265,1766487396467,-209.786308,0.00044657,120]
[399559266,1766487396508,-259.391101,0.00044657,120]
[399559267,1766487396549,-213.82803,0.00044657,120]
[399559268,1766487396588,-787.237658,0.00044657,120]
[399559269,1766487396625,-1663.38442,0.00044657,120]
[399559270,1766487396663,-393.61883,0.00044657,120]
[399559271,1766487396702,-495.51,0.000447,120]
[399559272,1766487396741,-678.09881747,0.000449,120]
[399559273,1766487396778,-157.0,0.000449,120]
[399559274,1766487396815,-10449.04,0.000449,120]
[399559275,1766487396854,-800.0,0.000449,120]
[399559276,1766487396893,-26031.65436636,0.00044901,120]
[399559277,1766487396934,-200.0,0.00044927,120]
[399559278,1766487396971,-917.06,0.00044931,120]
[399559279,1766487397008,-500.0,0.00044931,120]
[399559280,1766487397044,-500.0,0.00044931,120]
[399559281,1766487397085,-500.0,0.00044931,120]
[399559282,1766487397125,-500.0,0.00044931,120]
[399559283,1766487397166,-500.0,0.00044931,120]
[399559284,1766487397208,-500.0,0.00044931,120]
[399559285,1766487397248,-500.0,0.00044931,120]
[399559286,1766487397288,-264.07518519,0.00044931,120]
[399559287,1766487397328,-500.0,0.00044931,120]
[399559288,1766487397369,-500.0,0.00044931,120]
[399559289,1766487397407,-500.0,0.00044931,120]
[399559290,1766487397444,-500.0,0.00044931,120]
[399559291,1766487397482,-500.0,0.00044931,120]
[399559292,1766487397519,-222.04630784,0.00044931,120]
[399559293,1766487397556,-500.0,0.00044931,120]
[399559294,1766487397592,-328.44757557,0.00044931,120]
[399559295,1766487397630,-500.0,0.00044931,120]
[399559296,1766487397666,-1369.07,0.00044931,120]
[399559297,1766487397702,-500.0,0.00044931,120]
[399559298,1766487397738,-500.0,0.00044931,120]
[399559299,1766487397774,-500.0,0.00044931,120]
[399559300,1766487397810,-500.0,0.00044931,120]
[399559301,1766487397844,-547.96566586,0.00044931,120]
[399559302,1766487397879,-500.0,0.00044931,120]
[399559303,1766487397914,-756.38,0.00044931,120]
[399559304,1766487397950,-500.0,0.00044931,120]
[399559305,1766487397985,-500.0,0.00044931,120]
[399559306,1766487398020,-599.24755702,0.00044931,120]
[399559307,1766487398059,-531.7856327,0.00044931,120]
[399559308,1766487398099,-500.0,0.00044931,120]
[399559309,1766487398140,-500.0,0.00044931,120]
[399559310,1766487398180,-500.0,0.00044931,120]
[399559311,1766487398225,-500.0,0.00044931,120]
[399559312,1766487398267,-535.84410635,0.00044931,120]
[399559313,1766487398309,-500.0,0.00044931,120]
[399559314,1766487398351,-500.0,0.00044931,120]
[399559315,1766487398390,-500.0,0.00044931,120]
[399559316,1766487398434,-500.0,0.00044931,120]
[399559317,1766487398470,-500.0,0.00044931,120]
[399559318,1766487398510,-500.0,0.00044931,120]
[399559319,1766487398546,-500.0,0.00044931,120]
[399559320,1766487398582,-500.0,0.00044931,120]
[399559321,1766487398619,-500.0,0.00044931,120]
[399559322,1766487398657,-200.23738915,0.00044931,120]
[399559323,1766487398694,-620.66108255,0.00044931,120]
[399559324,1766487398890,-500.0,0.00044931,120]
[399559325,1766487398964,-599.23419115,0.00044931,120]
[399559326,1766487399005,-500.0,0.00044931,120]
[399559327,1766487399044,-500.0,0.00044931,120]
[399559328,1766487399086,-500.0,0.00044931,120]
[399559329,1766487399125,-500.0,0.00044931,120]
[399559330,1766487399164,-500.0,0.00044931,120]
[399559331,1766487399205,-500.0,0.00044931,120]
[399559332,1766487399245,-152.90464857,0.00044931,120]
[399559333,1766487399284,-537.65181294,0.00044931,120]
[399559334,1766487399323,-512.39624152,0.00044931,120]
[399559335,1766487399360,-600.38381733,0.00044931,120]
[399559336,1766487399397,-500.0,0.00044931,120]
[399559337,1766487399433,-500.0,0.00044931,120]
[399559338,1766487399470,-513.15426266,0.00044931,120]
[399559339,1766487399506,-500.0,0.00044931,120]
[399559340,1766487399542,-500.0,0.00044931,120]
[399559341,1766487399578,-500.0,0.00044931,120]
[399559342,1766487399614,-500.0,0.00044931,120]
[399559343,1766487399650,-500.0,0.00044931,120]
[399559344,1766487399685,-500.0,0.00044931,120]
[399559345,1766487399721,-500.0,0.00044931,120]
[399559346,1766487399756,-500.0,0.00044931,120]
[399559347,1766487399792,-610.93699565,0.00044931,120]
[399559348,1766487399827,-500.0,0.00044931,120]
[399559349,1766487399862,-500.0,0.00044931,120]
[399559350,1766487399898,-500.0,0.00044931,120]
[399559351,1766487399933,-500.0,0.00044931,120]
[399559352,1766487399970,-500.0,0.00044931,120]
[399559353,1766487400009,-500.0,0.00044931,120]
[399559354,1766487400047,-500.0,0.00044931,120]
[399559355,1766487400089,-636.56910284,0.00044931,120]
[399559356,1766487400130,-1039.08,0.00044931,120]
[399559357,1766487400170,-437.57243891,0.00044931,120]
[399559358,1766487400211,-500.0,0.00044931,120]
[399559359,1766487400250,-2118.86,0.00044931,120]
[399559360,1766487400291,-2017.38,0.00044931,120]
[399559361,1766487400329,-500.0,0.00044931,120]
[399559362,1766487400365,-500.0,0.00044931,120]
[399559363,1766487400402,-500.0,0.00044931,120]
[399559364,1766487400439,-519.39557765,0.00044931,120]
[399559365,1766487400475,-500.0,0.00044931,120]
[399559366,1766487400511,-500.0,0.00044931,120]
[399559367,1766487400546,-500.0,0.00044931,120]
[399559368,1766487400583,-500.0,0.00044931,120]
[399559369,1766487400619,-500.0,0.00044931,120]
[399559370,1766487400655,-500.0,0.00044931,120]
[399559371,1766487400690,-500.0,0.00044931,120]
[399559372,1766487400725,-1042.93,0.00044931,120]
[399559373,1766487400764,-500.0,0.00044931,120]
[399559374,1766487400798,-500.0,0.00044931,120]
[399559375,1766487400833,-500.0,0.00044931,120]
[399559376,1766487400869,-507.67100006,0.00044931,120]
[399559377,1766487400911,-500.0,0.00044931,120]
[399559378,1766487400948,-500.0,0.00044931,120]
[399559379,1766487400985,-500.0,0.00044931,120]
[399559380,1766487401023,-500.0,0.00044931,120]
[399559381,1766487401067,-500.0,0.00044931,120]
[399559382,1766487401107,-500.0,0.00044931,120]
[399559383,1766487401146,-500.0,0.00044931,120]
[399559384,1766487401185,-500.0,0.00044931,120]
[399559385,1766487401228,-500.0,0.00044931,120]
[399559386,1766487401270,-500.0,0.00044931,120]
[399559387,1766487401311,-500.0,0.00044931,120]
[399559388,1766487401350,-500.0,0.00044931,120]
[399559389,1766487401389,-500.0,0.00044931,120]
[399559390,1766487401429,-500.0,0.00044931,120]
[399559391,1766487401469,-500.0,0.00044931,120]
[399559392,1766487401509,-500.0,0.00044931,120]
[399559393,1766487401548,-500.0,0.00044931,120]
[399559394,1766487401586,-500.0,0.00044931,120]
[399559395,1766487401626,-500.0,0.00044931,120]
[399559396,1766487401665,-500.0,0.00044931,120]
[399559397,1766487401702,-500.0,0.00044931,120]
[399559398,1766487401739,-500.0,0.00044931,120]
[399559399,1766487401788,-480.47244309,0.00044931,120]
[399559400,1766487401826,-500.0,0.00044931,120]
[399559401,1766487401864,-500.0,0.00044931,120]
[399559402,1766487401901,-500.0,0.00044931,120]
[399559403,1766487401938,-500.0,0.00044931,120]
[399559404,1766487401976,-500.0,0.00044931,120]
[399559405,1766487402013,-500.0,0.00044931,120]
[399559406,1766487402050,-500.0,0.00044931,120]
[399559407,1766487402091,-545.33,0.00044931,120]
[399559408,1766487402134,-500.0,0.00044931,120]
[399559409,1766487402173,-500.0,0.00044931,120]
[399559410,1766487402216,-500.0,0.00044931,120]
[399559411,1766487402259,-500.0,0.00044931,120]
[399559412,1766487402302,-500.0,0.00044931,120]
[399559413,1766487402344,-500.0,0.00044931,120]
[399559414,1766487402385,-500.0,0.00044931,120]
[399559415,1766487402426,-500.0,0.00044931,120]
[399559416,1766487402468,-500.0,0.00044931,120]
[399559417,1766487402510,-1059.91,0.00044931,120]
[399559418,1766487402557,-481.65109764,0.00044931,120]
[399559419,1766487402840,-585.43886171,0.00044931,120]
[399559420,1766487402883,-582.18,0.00044931,120]
[399559421,1766487402920,-500.0,0.00044931,120]
[399559422,1766487402955,-500.0,0.00044931,120]
[399559423,1766487402990,-514.4,0.00044931,120]
[399559424,1766487403025,-500.0,0.00044931,120]
[399559425,1766487403065,-500.0,0.00044931,120]
[399559426,1766487403103,-500.0,0.00044931,120]
[399559427,1766487403141,-547.97437456,0.00044931,120]
[399559428,1766487403179,-500.0,0.00044931,120]
[399559429,1766487403224,-500.0,0.00044931,120]
[399559430,1766487403268,-500.0,0.00044931,120]
[399559431,1766487403311,-500.0,0.00044931,120]
[399559432,1766487403355,-500.0,0.00044931,120]
[399559433,1766487403396,-500.0,0.00044931,120]
[399559434,1766487403440,-500.0,0.00044931,120]
[399559435,1766487403479,-500.0,0.00044931,120]
[399559436,1766487403519,-375.08933705,0.00044931,120]
[399559437,1766487403559,-500.0,0.00044931,120]
[399559438,1766487403598,-500.0,0.00044931,120]
[399559439,1766487403639,-500.0,0.00044931,120]
[399559440,1766487403679,-500.0,0.00044931,120]
[399559441,1766487403718,-500.0,0.00044931,120]
[399559442,1766487403759,-500.0,0.00044931,120]
[399559443,1766487403798,-500.0,0.00044931,120]
[399559444,1766487403837,-500.0,0.00044931,120]
[399559445,1766487403875,-500.0,0.00044931,120]
[399559446,1766487403913,-172.62227433,0.00044931,120]
[399559447,1766487403950,-500.0,0.00044931,120]
[399559448,1766487403989,-500.0,0.00044931,120]
[399559449,1766487404028,-500.0,0.00044931,120]
[399559450,1766487404070,-500.0,0.00044931,120]
[399559451,1766487404110,-500.0,0.00044931,120]
[399559452,1766487404151,-635.65482782,0.00044931,120]
[399559453,1766487404192,-500.0,0.00044931,120]
[399559454,1766487404232,-500.0,0.00044931,120]
[399559455,1766487404272,-500.0,0.00044931,120]
[399559456,1766487404312,-500.0,0.00044931,120]
[399559457,1766487404352,-500.0,0.00044931,120]
[399559458,1766487404390,-500.0,0.00044931,120]
[399559459,1766487404427,-500.0,0.00044931,120]
[399559460,1766487404464,-500.0,0.00044931,120]
[399559461,1766487404500,-500.0,0.00044931,120]
[399559462,1766487404536,-517.04630062,0.00044931,120]
[399559463,1766487404572,-500.0,0.00044931,120]
[399559464,1766487404611,-500.0,0.00044931,120]
[399559465,1766487404647,-500.0,0.00044931,120]
[399559466,1766487404684,-500.0,0.00044931,120]
[399559467,1766487404721,-500.0,0.00044931,120]
[399559468,1766487404759,-500.0,0.00044931,120]
[399559469,1766487404796,-500.0,0.00044931,120]
[399559470,1766487404834,-500.0,0.00044931,120]
[399559471,1766487404872,-500.0,0.00044931,120]
[399559472,1766487404910,-500.0,0.00044931,120]
[399559473,1766487404947,-500.0,0.00044931,120]
[399559474,1766487404985,-500.0,0.00044931,120]
[399559475,1766487405023,-1956.07,0.00044931,120]
[399559476,1766487405062,-500.0,0.00044931,120]
[399559477,1766487405105,-1842.03,0.00044931,120]
[399559478,1766487405143,-500.0,0.00044931,120]
[399559479,1766487405183,-500.0,0.00044931,120]
[399559480,1766487405224,-500.0,0.00044931,120]
[399559481,1766487405265,-156.42768472,0.00044931,120]
[399559482,1766487405305,-2752.43,0.00044931,120]
[399559483,1766487405344,-500.0,0.00044931,120]
[399559484,1766487405383,-500.0,0.00044931,120]
[399559485,1766487405421,-500.0,0.00044931,120]
[399559486,1766487405458,-500.0,0.00044931,120]
[399559487,1766487405495,-500.0,0.00044931,120]
[399559488,1766487405533,-500.0,0.00044931,120]
[399559489,1766487405570,-500.0,0.00044931,120]
[399559490,1766487405607,-500.0,0.00044931,120]
[399559491,1766487405644,-500.0,0.00044931,120]
[399559492,1766487405680,-500.0,0.00044931,120]
[399559493,1766487405716,-500.0,0.00044931,120]
[399559494,1766487405753,-500.0,0.00044931,120]
[399559495,1766487405795,-500.0,0.00044931,120]
[399559496,1766487405831,-500.0,0.00044931,120]
[399559497,1766487405867,-586.34,0.00044931,120]
[399559498,1766487405904,-500.0,0.00044931,120]
[399559499,1766487405942,-500.0,0.00044931,120]
[399559500,1766487405980,-500.0,0.00044931,120]
[399559501,1766487406019,-308.7614975,0.00044931,120]
[399559502,1766487406056,-500.0,0.00044931,120]
[399559503,1766487406097,-500.0,0.00044931,120]
[399559504,1766487406138,-500.0,0.00044931,120]
[399559505,1766487406178,-500.0,0.00044931,120]
[399559506,1766487406222,-500.0,0.00044931,120]
[399559507,1766487406266,-500.0,0.00044931,120]
[399559508,1766487406309,-500.0,0.00044931,120]
[399559509,1766487406354,-697.63,0.00044931,120]
[399559510,1766487406396,-500.0,0.00044931,120]
[399559511,1766487406438,-362.59423128,0.00044931,120]
[399559512,1766487406478,-500.0,0.00044931,120]
[399559513,1766487406517,-500.0,0.00044931,60]
[399559514,1766487406773,-500.0,0.00044931,120]
[399559515,1766487406817,-500.0,0.00044931,120]
[399559516,1766487406861,-500.0,0.00044931,120]
[399559517,1766487406903,-500.0,0.00044931,120]
[399559518,1766487406943,-500.0,0.00044931,120]
[399559519,1766487406983,-500.0,0.00044931,120]
[399559520,1766487407026,-500.0,0.00044931,120]
[399559521,1766487407069,-982.85,0.00044931,120]
[399559522,1766487407111,-500.0,0.00044931,120]
[399559523,1766487407154,-500.0,0.00044931,120]
[399559524,1766487407196,-500.0,0.00044931,120]
[399559525,1766487407240,-500.0,0.00044931,120]
[399559526,1766487407285,-469.7349504,0.00044931,120]
[399559527,1766487407328,-512.00182151,0.00044931,120]
[399559528,1766487407371,-245.27289263,0.00044931,120]
[399559529,1766487407419,-500.0,0.00044931,120]
[399559530,1766487407462,-500.0,0.00044931,120]
[399559531,1766487407504,-500.0,0.00044931,120]
[399559532,1766487407550,-500.0,0.00044931,120]
[399559533,1766487407595,-500.0,0.00044931,120]
[399559534,1766487407638,-500.0,0.00044931,120]
[399559535,1766487407679,-500.0,0.00044931,120]
[399559536,1766487407722,-500.0,0.00044931,120]
[399559537,1766487407761,-500.0,0.00044931,120]
[399559538,1766487407802,-500.0,0.00044931,120]
[399559539,1766487407841,-500.0,0.00044931,120]
[399559540,1766487407881,-500.0,0.00044931,120]
[399559541,1766487407920,-715.76,0.00044931,120]